bitfinex-derivatives/quotes_SOLF0:USTF0_20240823
["timestamp","ask_amount","ask_price","bid_price","bid_amount"]
[1724391881069,0.04938758,145.53,145.51,3.4354]
[1724391881376,0.04417216,145.53,145.52,7.37]
[1724391882269,0.04417216,145.53,145.52,5.37954]
[1724391885578,3.4341,145.57,145.52,38.29474]
[1724391885779,3.4341,145.57,145.55,7.37]
[1724391886577,3.47903127,145.57,145.55,7.42084588]
[1724391890687,0.04493127,145.57,145.55,7.42084588]
[1724391894987,0.04493127,145.57,145.56,7.37]
[1724391896593,3.47913127,145.57,145.55,0.05084588]
[1724391896787,1.94956412,145.55,145.54,7.37]
[1724391896984,3.47913127,145.57,145.54,5.36959]
[1724391900090,3.47913127,145.57,145.55,7.37]
[1724391902393,0.04493127,145.57,145.55,7.37]
[1724391902791,0.04493127,145.57,145.56,7.37]
[1724391904496,3.9649,145.63,145.56,10.8043]
[1724391904706,3.9649,145.63,145.58,7.37]
[1724391904897,3.4333,145.61,145.6,7.37]
[1724391905401,3.4329,145.62,145.6,7.37]
[1724391905593,3.4769193,145.62,145.6,7.42172065]
[1724391906390,0.0440193,145.62,145.61,7.37]
[1724391907195,0.0440193,145.62,145.6,3.48482065]
[1724391907399,0.0440193,145.62,145.6,10.85482065]
[1724391908197,3.4769193,145.62,145.6,3.48482065]
[1724391909605,3.4769193,145.62,145.6,3.45899065]
[1724391910707,0.0440193,145.62,145.6,3.45899065]
[1724391912004,0.0440193,145.62,145.6,10.82899065]
[1724391912616,0.0440193,145.62,145.6,7.39589065]
[1724391913111,0.0440193,145.62,145.61,3.4331]
[1724391913319,0.0440193,145.62,145.61,10.8031]
[1724391917509,0.0440193,145.62,145.61,14.17822009]
[1724391917709,32.80155372,145.69,145.62,3.4327]
[1724391917908,3.432,145.66,145.64,7.37]
[1724391918825,3.4822163,145.66,145.64,7.41377117]
[1724391919118,3.4321,145.65,145.64,0.04377117]
[1724391923419,3.4823163,145.66,145.64,0.04377117]
[1724391924517,3.4322,145.65,145.64,0.04377117]
[1724391926420,5.39709883,145.64,145.6,7.37]
[1724391926716,3.4325,145.64,145.6,5.40540116]
[1724391927426,3.4325,145.64,145.61,0.02613878]
[1724391927427,0.04682834,145.63,145.61,0.02613878]
[1724391928115,0.04682834,145.63,145.61,3.45923878]
[1724391928321,0.04682834,145.63,145.61,10.82923878]
[1724391928722,0.04682834,145.63,145.61,7.39613878]
[1724391928924,0.04682834,145.63,145.62,3.4329]
[1724391929422,0.04682834,145.63,145.61,10.82933878]
[1724391931628,0.04682834,145.63,145.62,3.4331]
[1724391932629,0.04682834,145.63,145.62,10.8031]
[1724391939534,0.04682834,145.63,145.62,14.15863727]
[1724391939735,3.4318,145.68,145.65,7.37]
[1724391940133,3.4314,145.7,145.65,7.37]
[1724391940431,13.31378,145.72,145.67,7.37]
[1724391940633,0.04937498,145.71,145.68,0.05254115]
[1724391941226,3.4312,145.7,145.68,0.05254115]
[1724391941731,0.04937498,145.71,145.68,0.05254115]
[1724391941925,3.4312,145.7,145.68,0.05254115]
[1724391944329,3.4315,145.69,145.68,0.05254115]
[1724391947537,3.4323,145.66,145.63,3.4328]
[1724391947840,10.8023,145.66,145.61,10.72600082]
[1724391948139,10.8023,145.66,145.62,3.40709]
[1724391948742,0.04349584,145.65,145.63,0.02042597]
[1724391957448,0.04349584,145.65,145.62,3.4329]
[1724391957449,1.97847403,145.63,145.62,3.4329]
[1724391957645,0.04349584,145.65,145.61,10.72600082]
[1724391957646,3.47599584,145.65,145.61,10.8032]
[1724391957847,1.97847403,145.61,145.6,7.37]
[1724391958042,7.37,145.66,145.6,3.39262597]
[1724391958446,0.04919238,145.64,145.6,3.39262597]
[1724391959446,3.48199238,145.64,145.6,6.82622597]
[1724391959752,0.04919238,145.64,145.6,6.82622597]
[1724391960455,0.04919238,145.64,145.61,3.4333]
[1724391962251,0.04919238,145.64,145.61,1.43235]
[1724391962752,0.04919238,145.64,145.6,6.82602597]
[1724391963154,0.04919238,145.64,145.6,3.4334]
[1724391963651,3.48189238,145.64,145.6,1.43381]
[1724391964047,0.04919238,145.64,145.6,1.43381]
[1724391964748,0.04919238,145.64,145.59,10.74590348]
[1724391964749,0.04919238,145.64,145.61,3.4333]
[1724391967852,0.04919238,145.64,145.59,3.37590348]
[1724391968055,0.04919238,145.64,145.61,7.37]
[1724391968857,0.04919238,145.64,145.62,3.433]
[1724391969062,0.04919238,145.64,145.61,7.37]
[1724391969256,0.04919238,145.64,145.61,10.8032]
[1724391969457,0.04919238,145.64,145.61,7.37]
[1724391971161,0.04919238,145.64,145.61,10.8032]
[1724391974766,0.04919238,145.64,145.63,7.37]
[1724391977276,0.04919238,145.64,145.62,10.803]
[1724391979574,0.04919238,145.64,145.62,7.37]
[1724391981383,0.04919238,145.64,145.62,10.8031]
[1724391985077,0.04919238,145.64,145.62,10.40208]
[1724391985282,0.04919238,145.64,145.62,6.96898]
[1724391986976,0.04919238,145.64,145.62,10.40208]
[1724391987781,0.04919238,145.64,145.62,9.7022]
[1724391988087,0.04919238,145.64,145.62,8.80238]
[1724391988288,0.04919238,145.64,145.63,10.8029]
[1724391991690,0.04919238,145.64,145.63,8.80293]
[1724391993080,0.04919238,145.64,145.63,1.43293]
[1724391993290,0.56679,145.63,145.61,8.7602]
[1724391993485,0.04919238,145.64,145.61,8.19341]
[1724391993687,0.04919238,145.64,145.59,3.48275792]
[1724391993887,0.04919238,145.64,145.61,10.8032]
[1724391994090,0.04919238,145.64,145.61,14.28479349]
[1724391996395,3.48189238,145.64,145.61,7.37]
[1724391996795,3.48189238,145.64,145.61,5.37033]
[1724391997294,0.04919238,145.64,145.6,3.4335]
[1724391997596,0.04919238,145.64,145.6,10.8035]
[1724391998288,3.48199238,145.64,145.6,10.8035]
[1724392002405,3.48199238,145.64,145.6,3.4335]
[1724392004402,3.48199238,145.64,145.6,1.43391]
[1724392006205,3.48199238,145.64,145.59,10.75082857]
[1724392007397,3.48199238,145.64,145.56,2.6182]
[1724392007398,1.99952,145.59,145.56,2.6182]
[1724392007599,0.04725664,145.59,145.57,7.37]
[1724392007803,0.04725664,145.59,145.57,6.36962]
[1724392008204,0.04725664,145.59,145.57,9.80382]
[1724392008608,0.04725664,145.59,145.57,7.80341]
[1724392011802,0.04725664,145.59,145.58,7.37]
[1724392016009,0.04725664,145.59,145.58,10.8041]
[1724392023711,0.04725664,145.59,145.58,8.80355]
[1724392024412,0.04725664,145.59,145.58,3.4341]
[1724392025515,0.04725664,145.59,145.58,10.8041]
[1724392027208,0.04725664,145.59,145.58,7.37]
[1724392028316,0.04725664,145.59,145.58,10.8041]
[1724392034420,1.99584,145.7,145.58,36.85]
[1724392034622,32.93664297,145.72,145.67,7.37]
[1724392034822,30.94080297,145.72,145.67,7.37]
[1724392035223,0.0444214,145.71,145.68,0.04724205]
[1724392036313,3.4754214,145.71,145.68,0.04724205]
[1724392038217,0.0444214,145.71,145.69,7.37]
[1724392038718,3.4754214,145.71,145.68,3.47894205]
[1724392040325,3.4313,145.7,145.68,0.04724205]
[1724392040624,1.86032795,145.68,145.65,7.37]
[1724392040823,10.8013,145.7,145.66,3.432]
[1724392041526,0.04894295,145.69,145.66,3.432]
[1724392043021,0.04894295,145.69,145.66,2.63184]
[1724392043325,0.04894295,145.69,145.66,1.43216]
[1724392043526,0.04894295,145.69,145.65,6.89145703]
[1724392045016,1.99972,145.65,145.61,1.2938]
[1724392045319,7.37,145.68,145.63,3.37097]
[1724392045521,0.04339436,145.67,145.63,3.4327]
[1724392046833,3.47549436,145.67,145.62,7.37]
[1724392048429,3.47549436,145.67,145.63,3.4329]
[1724392049330,3.47549436,145.67,145.63,10.8029]
[1724392049529,0.04339436,145.67,145.64,3.4326]
[1724392049826,0.04339436,145.67,145.64,1.43205]
[1724392054838,0.04339436,145.67,145.63,10.8028]
[1724392056030,3.47539436,145.67,145.63,10.8028]
[1724392059437,3.47539436,145.67,145.63,3.4328]
[1724392059638,3.47539436,145.67,145.63,10.8028]
[1724392061638,0.04339436,145.67,145.64,3.4326]
[1724392062142,0.04339436,145.67,145.63,3.4328]
[1724392062352,2.00028,145.63,145.58,2.6709]
[1724392062544,0.04443461,145.62,145.59,5.36972]
[1724392062747,0.04443461,145.62,145.59,4.80319]
[1724392063452,0.04443461,145.62,145.6,3.4336]
[1724392064246,0.04443461,145.62,145.6,10.8036]
[1724392066350,0.04443461,145.62,145.59,10.8038]
[1724392068448,0.04443461,145.62,145.59,8.80279]
[1724392069441,0.04443461,145.62,145.59,7.37]
[1724392069646,0.04443461,145.62,145.53,4.0761]
[1724392069647,1.99986,145.59,145.56,7.37]
[1724392069946,1.99986,145.57,145.56,7.37]
[1724392070143,0.04815851,145.58,145.56,8.80444]
[1724392070345,0.04815851,145.58,145.57,3.4777443]
[1724392071344,0.04815851,145.58,145.57,6.9120443]
[1724392072255,0.04815851,145.58,145.57,3.4777443]
[1724392073847,0.04815851,145.58,145.57,3.0767543]
[1724392074050,0.04815851,145.58,145.56,8.80444]
[1724392074544,0.04815851,145.58,145.57,6.8202875]
[1724392075849,0.04815851,145.58,145.56,8.80454]
[1724392076448,0.04815851,145.58,145.56,3.4344]
[1724392076652,0.04815851,145.58,145.56,6.81764136]
[1724392077443,0.04815851,145.58,145.56,3.38324136]
[1724392077642,1.0012,145.56,145.55,10.8047]
[1724392077846,0.04815851,145.58,145.55,3.38553344]
[1724392078153,0.04815851,145.58,145.57,6.36968]
[1724392078654,0.04815851,145.58,145.57,9.80398]
[1724392078855,0.04815851,145.58,145.57,9.00397]
[1724392079053,0.04815851,145.58,145.57,12.44923603]
[1724392080048,0.04815851,145.58,145.57,10.81526603]
[1724392080248,0.04815851,145.58,145.57,7.37]
[1724392083858,0.04815851,145.58,145.57,10.8043]
[1724392086353,0.04815851,145.58,145.56,3.43074012]
[1724392086554,0.04815851,145.58,145.56,7.37]
[1724392086859,0.04815851,145.58,145.57,3.46905816]
[1724392087561,0.04815851,145.58,145.57,6.90335816]
[1724392091561,0.04815851,145.58,145.57,6.86499816]
[1724392091866,0.04815851,145.58,145.57,3.4343]
[1724392092256,0.04815851,145.58,145.57,6.86868817]
[1724392092662,0.04815851,145.58,145.57,6.83048817]
[1724392094766,0.04815851,145.58,145.57,14.20048817]
[1724392094960,13.79556081,145.78,145.58,3.4339]
[1724392094961,7.37,145.65,145.58,3.4339]
[1724392095264,7.37,145.65,145.6,7.37]
[1724392095961,3.47769639,145.64,145.61,0.0481731]
[1724392097765,0.04499639,145.64,145.62,3.4331]
[1724392098375,0.04499639,145.64,145.61,10.8514731]
[1724392100771,3.47769639,145.64,145.61,3.4814731]
[1724392102171,3.47769639,145.64,145.61,0.0481731]
[1724392102974,1.9516869,145.61,145.51,6.8714]
[1724392103172,7.37,145.62,145.51,5.44138324]
[1724392103371,7.37,145.62,145.56,7.37]
[1724392103571,7.37,145.62,145.56,10.71948444]
[1724392103973,0.04555219,145.6,145.57,3.4341]
[1724392106777,0.04555219,145.6,145.57,10.8041]
[1724392120380,0.04555219,145.6,145.57,7.37]
[1724392122487,0.04555219,145.6,145.57,10.8043]
[1724392122884,0.04555219,145.6,145.57,3.4343]
[1724392123185,0.04555219,145.6,145.57,8.80039]
[1724392125884,0.04555219,145.6,145.59,7.37]
[1724392128689,0.04555219,145.6,145.58,3.4341]
[1724392129190,0.04555219,145.6,145.57,7.37]
[1724392130293,0.04555219,145.6,145.58,3.4338]
[1724392132490,0.04555219,145.6,145.57,10.8042]
[1724392133097,0.04555219,145.6,145.58,3.4341]
[1724392138399,0.04555219,145.6,145.57,10.8042]
[1724392138794,0.04555219,145.6,145.57,3.4342]
[1724392138995,0.04555219,145.6,145.58,3.434]
[1724392140592,1.99959,145.58,145.57,3.4342]
[1724392140798,0.04555219,145.6,145.57,1.43461]
[1724392141393,0.04555219,145.6,145.55,3.4346]
[1724392141394,7.41555219,145.6,145.55,3.4346]
[1724392142097,0.56565,145.55,145.54,10.86171379]
[1724392142300,0.04809711,145.56,145.54,10.29606378]
[1724392142497,0.04809711,145.56,145.54,7.37]
[1724392142999,0.04809711,145.56,145.55,10.8048]
[1724392143198,0.04809711,145.56,145.55,14.25270584]
[1724392144301,5.38217257,145.65,145.58,3.434]
[1724392144604,12.75217257,145.65,145.6,7.37]
[1724392144789,1.99572,145.65,145.6,7.37]
[1724392144991,3.47159453,145.69,145.62,7.37]
[1724392145189,1.99572,145.68,145.62,7.37]
[1724392145391,3.47743759,145.66,145.64,7.37]
[1724392146387,0.04513759,145.66,145.64,7.37]
[1724392147500,0.04513759,145.66,145.63,0.04700213]
[1724392149096,0.04513759,145.66,145.64,7.37]
[1724392149690,0.04513759,145.66,145.64,10.75529012]
[1724392151101,0.04513759,145.66,145.64,14.18789012]
[1724392152797,0.04513759,145.66,145.63,3.47980213]
[1724392154291,0.04513759,145.66,145.64,7.37]
[1724392156498,0.04513759,145.66,145.63,3.47980213]
[1724392156706,0.04513759,145.66,145.64,7.37]
[1724392158494,0.04513759,145.66,145.65,7.37]
[1724392161406,0.04513759,145.66,145.65,10.8024]
[1724392168108,3.4311,145.71,145.66,3.432]
[1724392168304,3.4311,145.71,145.68,7.37]
[1724392168499,3.4309,145.72,145.68,7.37]
[1724392169206,0.05099468,145.71,145.69,0.04700924]
[1724392170414,0.05099468,145.71,145.7,7.37]
[1724392172413,0.05099468,145.71,145.69,3.47840924]
[1724392172614,0.05099468,145.71,145.69,0.04700924]
[1724392174415,0.05099468,145.71,145.69,3.47850924]
[1724392175319,0.05099468,145.71,145.7,3.4312]
[1724392175709,0.05099468,145.71,145.69,7.41700924]
[1724392176017,0.05099468,145.71,145.69,1.46903924]
[1724392177114,0.05099468,145.71,145.69,1.5125503]
[1724392177312,0.05099468,145.71,145.69,0.04351106]
[1724392178220,0.05099468,145.71,145.69,7.41351106]
[1724392182022,0.05099468,145.71,145.69,0.04351106]
[1724392184522,0.15659894,145.69,145.68,14.17497308]
[1724392184723,0.05099468,145.71,145.68,14.01837413]
[1724392185118,0.05099468,145.71,145.68,10.74337308]
[1724392185520,0.05099468,145.71,145.68,10.24341308]
[1724392187621,0.05099468,145.71,145.68,6.87004]
[1724392188517,0.05099468,145.71,145.69,7.37]
[1724392190123,0.05099468,145.71,145.7,7.37]
[1724392191331,0.05099468,145.71,145.7,10.8012]
[1724392195436,0.05099468,145.71,145.7,7.37]
[1724392197242,0.05099468,145.71,145.69,7.37]
[1724392198935,0.05099468,145.71,145.69,10.8014]
[1724392199540,0.05099468,145.71,145.69,14.22815876]
[1724392200835,0.05099468,145.71,145.69,10.8014]
[1724392201035,0.05099468,145.71,145.69,10.86158284]
[1724392202541,0.05099468,145.71,145.69,14.29308284]
[1724392202841,0.05099468,145.71,145.7,7.37]
[1724392203741,0.05099468,145.71,145.7,7.30543]
[1724392204344,0.05099468,145.71,145.7,10.73663]
[1724392206746,0.05099468,145.71,145.7,14.22227827]
[1724392208348,0.05099468,145.71,145.7,14.28684827]
[1724392210649,0.05099468,145.71,145.7,6.91684827]
[1724392210849,0.05099468,145.71,145.7,14.28684827]
[1724392211042,0.05099468,145.71,145.7,14.23166827]
[1724392212545,0.05099468,145.71,145.69,10.8013]
[1724392213146,0.05099468,145.71,145.69,14.16323468]
[1724392213347,0.05099468,145.71,145.69,6.79323468]
[1724392215941,0.05099468,145.71,145.69,14.16323468]
[1724392217049,0.05099468,145.71,145.7,10.8012]
[1724392217747,0.05099468,145.71,145.7,14.21217962]
[1724392220453,0.05099468,145.71,145.7,10.78097962]
[1724392220753,0.05099468,145.71,145.7,7.37]
[1724392221058,0.05099468,145.71,145.7,10.82145584]
[1724392221549,0.05099468,145.71,145.7,14.25265584]
[1724392223051,0.05099468,145.71,145.7,10.8012]
[1724392223549,0.05099468,145.71,145.7,14.20680304]
[1724392225353,4.8025,145.76,145.71,3.4308]
[1724392225658,1.3726,145.76,145.73,7.37]
[1724392226557,1.41801881,145.76,145.73,7.41815663]
[1724392226762,0.04541881,145.76,145.73,7.41815663]
[1724392227056,0.04541881,145.76,145.73,10.87359492]
[1724392230552,0.01073337,145.73,145.68,1.3773]
[1724392230756,7.37,145.75,145.7,7.37]
[1724392231555,7.37,145.75,145.71,6.94590761]
[1724392231763,0.0457392,145.74,145.71,6.94590761]
[1724392232463,0.0457392,145.74,145.72,7.37]
[1724392232662,0.0457392,145.74,145.73,7.37]
[1724392233361,0.0457392,145.74,145.73,10.8005]
[1724392233662,0.0457392,145.74,145.73,14.28978553]
[1724392234765,0.0457392,145.74,145.73,10.8005]
[1724392235259,0.0457392,145.74,145.73,14.18689722]
[1724392236260,0.0457392,145.74,145.73,10.8005]
[1724392236769,0.0457392,145.74,145.73,14.19077629]
[1724392237673,4.8174,145.8,145.75,3.43]
[1724392237965,4.8174,145.8,145.76,7.37]
[1724392238755,0.04941039,145.79,145.77,0.05129165]
[1724392241869,0.04941039,145.79,145.78,7.37]
[1724392246268,0.04941039,145.79,145.77,0.05129165]
[1724392246963,0.04941039,145.79,145.77,0.03015165]
[1724392250674,0.04941039,145.79,145.77,7.40015165]
[1724392251274,0.04941039,145.79,145.78,10.7993]
[1724392251471,0.04941039,145.79,145.78,7.37]
[1724392259582,0.04941039,145.79,145.78,5.37015]
[1724392259982,0.04941039,145.79,145.77,7.40015165]
[1724392260572,0.04941039,145.79,145.77,10.88252179]
[1724392260885,3.47851039,145.79,145.77,10.88252179]
[1724392261092,0.04941039,145.79,145.77,10.88252179]
[1724392267686,0.04941039,145.79,145.77,3.51252179]
[1724392267890,0.04941039,145.79,145.78,7.37]
[1724392281898,3.47851039,145.79,145.77,3.34317981]
[1724392282196,0.04941039,145.79,145.78,7.37]
[1724392285510,7.41941039,145.79,145.72,3.4308]
[1724392285800,7.4184703,145.77,145.72,7.37]
[1724392285998,1.99973,145.72,145.7,3.4311]
[1724392286200,0.04922458,145.72,145.71,8.83995454]
[1724392286395,2.52961546,145.71,145.69,1.3241]
[1724392286601,0.04922458,145.72,145.71,6.84011454]
[1724392286798,0.04922458,145.72,145.71,10.27277082]
[1724392290105,3.4299,145.76,145.71,10.27277082]
[1724392290411,3.4297,145.77,145.75,7.37]
[1724392290808,3.35484481,145.79,145.75,7.37]
[1724392291008,0.04731323,145.78,145.76,0.04879607]
[1724392291505,3.4298,145.77,145.76,0.04879607]
[1724392297107,0.04731323,145.78,145.76,7.41879607]
[1724392297507,3.47681323,145.78,145.76,7.41879607]
[1724392297809,0.04731323,145.78,145.76,0.04879607]
[1724392299713,3.47681323,145.78,145.76,0.04879607]
[1724392301010,3.4296,145.77,145.76,0.04879607]
[1724392306020,1.93380393,145.76,145.74,3.47656636]
[1724392306210,3.4296,145.77,145.74,1.54276243]
[1724392306405,3.4296,145.77,145.73,7.37]
[1724392306915,3.4296,145.77,145.74,1.42411412]
[1724392307218,3.4296,145.77,145.74,10.84965237]
[1724392307712,3.47681323,145.78,145.76,7.37]
[1724392308511,3.4296,145.77,145.73,3.4304]
[1724392308711,0.04503475,145.76,145.74,5.36986]
[1724392309020,0.04503475,145.76,145.69,1.3241]
[1724392309021,3.99931001,145.74,145.72,3.5002258]
[1724392309215,3.99931001,145.74,145.71,7.37]
[1724392309718,7.42961001,145.74,145.71,10.80644817]
[1724392310017,3.99931001,145.74,145.71,10.80644817]
[1724392310910,7.42961001,145.74,145.71,3.43644817]
[1724392311110,7.42961001,145.74,145.62,225.0]
[1724392311111,5.99986,145.71,145.7,7.37]
[1724392311316,2.6301,145.7,145.68,53.99642845]
[1724392311515,0.05115267,145.72,145.68,54.7099691]
[1724392311713,0.05115267,145.72,145.71,7.37]
[1724392313816,23.0,145.71,145.6,9.39408078]
[1724392314113,2.00255,145.61,145.59,1.3157]
[1724392314312,0.68685,145.59,145.58,9.49123451]
[1724392314520,7.37,145.7,145.54,3.13068332]
[1724392314521,3.4323,145.66,145.54,3.13068332]
[1724392314719,3.4323,145.66,145.64,7.37]
[1724392314913,7.37,145.7,145.64,7.37]
[1724392315113,2.7536,145.74,145.66,7.37]
[1724392315326,2.7536,145.74,145.69,0.04348153]
[1724392315327,0.05182181,145.71,145.69,0.04348153]
[1724392315818,3.4312,145.7,145.69,0.04348153]
[1724392319016,10.8012,145.7,145.69,0.04348153]
[1724392319221,1.95486847,145.69,145.65,7.37]
[1724392319418,7.37,145.7,145.63,3.4382719]
[1724392319622,7.37,145.7,145.64,7.37]
[1724392319825,3.4322,145.66,145.64,10.77713007]
[1724392320226,3.48301667,145.66,145.64,10.77713007]
[1724392321222,3.48301667,145.66,145.64,3.40713007]
[1724392321419,3.48301667,145.66,145.65,7.37]
[1724392324630,3.4326,145.65,145.61,3.9741]
[1724392324826,0.05081667,145.66,145.62,5.37029]
[1724392325923,3.4328,145.64,145.62,5.37029]
[1724392326825,3.4328,145.64,145.61,7.37619245]
[1724392327132,3.4328,145.64,145.63,7.37]
[1724392329343,3.4324,145.65,145.63,7.37]
[1724392329639,3.4324,145.65,145.64,7.37]
[1724392331643,0.05081667,145.66,145.64,7.37]
[1724392331839,0.05081667,145.66,145.65,7.37]
[1724392336043,0.05081667,145.66,145.65,10.86188797]
[1724392338449,0.05081667,145.66,145.63,7.37]
[1724392338845,0.05081667,145.66,145.64,3.48341327]
[1724392339348,0.05081667,145.66,145.64,7.37]
[1724392339548,0.05081667,145.66,145.65,3.40552371]
[1724392340850,2.00152,145.65,145.58,3.4346894]
[1724392341149,7.37,145.62,145.56,7.37]
[1724392341346,7.37,145.62,145.56,6.83882761]
[1724392341547,7.37,145.62,145.56,4.83979761]
[1724392342149,7.37,145.62,145.56,4.13641761]
[1724392342348,3.4337,145.6,145.56,4.13641761]
[1724392342646,0.04397505,145.59,145.56,4.13641761]
[1724392342847,0.04397505,145.59,145.56,3.47071761]
[1724392343048,0.04397505,145.59,145.56,10.84071761]
[1724392343750,0.04397505,145.59,145.56,9.54090761]
[1724392343943,0.04397505,145.59,145.56,7.37]
[1724392344148,0.04397505,145.59,145.55,6.1138]
[1724392344355,0.04397505,145.59,145.56,7.37]
[1724392344557,0.04397505,145.59,145.56,1.48432191]
[1724392344856,0.04397505,145.59,145.55,13.4838]
[1724392345057,0.04397505,145.59,145.55,10.0491]
[1724392345252,0.04397505,145.59,145.56,3.46665529]
[1724392345847,0.04397505,145.59,145.55,2.6791]
[1724392346054,0.04397505,145.59,145.54,3.39765858]
[1724392346055,2.00014,145.55,145.54,3.39765858]
[1724392346358,0.60096142,145.54,145.53,7.37]
[1724392346558,0.04952337,145.56,145.53,6.76903858]
[1724392346755,0.04952337,145.56,145.54,7.37]
[1724392347054,0.04952337,145.56,145.55,7.37]
[1724392348958,0.04952337,145.56,145.54,3.4348]
[1724392349159,0.04952337,145.56,145.55,7.37]
[1724392350762,0.04952337,145.56,145.55,10.8048]
[1724392352458,3.4334,145.61,145.56,3.4344]
[1724392352764,8.629,145.66,145.59,7.37]
[1724392352952,3.4332,145.62,145.59,7.37]
[1724392353362,3.48576839,145.62,145.59,7.42008198]
[1724392357068,0.05256839,145.62,145.59,7.42008198]
[1724392357462,0.05256839,145.62,145.59,10.85388198]
[1724392357862,0.05256839,145.62,145.59,3.48388198]
[1724392358063,0.05256839,145.62,145.59,0.05008198]
[1724392358265,0.05256839,145.62,145.59,7.42008198]
[1724392358965,0.05256839,145.62,145.59,0.05008198]
[1724392360361,3.48566839,145.62,145.59,0.05008198]
[1724392361270,0.05256839,145.62,145.59,7.42008198]
[1724392362375,3.48576839,145.62,145.59,0.05008198]
[1724392362669,3.48576839,145.62,145.59,7.39200198]
[1724392364169,0.05256839,145.62,145.59,7.39200198]
[1724392366774,0.05256839,145.62,145.59,10.82580198]
[1724392367678,0.05256839,145.62,145.6,7.37]
[1724392368271,0.05256839,145.62,145.61,14.22656856]
[1724392369373,0.05256839,145.62,145.61,10.79316856]
[1724392372474,0.05256839,145.62,145.61,7.37]
[1724392372977,0.05256839,145.62,145.61,10.859175]
[1724392373976,0.05256839,145.62,145.61,3.489175]
[1724392374173,0.05256839,145.62,145.6,4.8007]
[1724392374376,0.05256839,145.62,145.6,12.1707]
[1724392374574,0.05256839,145.62,145.6,15.67017161]
[1724392377277,0.05256839,145.62,145.6,10.86947161]
[1724392377476,1.99124,145.6,145.59,0.02200198]
[1724392377676,1.96923802,145.59,145.57,7.37]
[1724392377878,0.05256839,145.62,145.57,7.37]
[1724392378178,1.69999,145.57,145.56,10.81936148]
[1724392378377,7.42256839,145.62,145.55,12.1348]
[1724392378378,2.25150852,145.56,145.55,12.1348]
[1724392379075,2.25150852,145.56,145.55,15.61745382]
[1724392380776,2.25150852,145.56,145.55,8.24745382]
[1724392380977,2.25150852,145.56,145.55,15.61745382]
[1724392382080,0.0506212,145.57,145.55,15.61745382]
[1724392382279,0.0506212,145.57,145.55,10.85265382]
[1724392382475,0.0506212,145.57,145.55,7.93104382]
[1724392382677,0.0506212,145.57,145.55,7.37]
[1724392382980,0.0506212,145.57,145.55,10.8046]
[1724392383287,0.0506212,145.57,145.56,7.37]
[1724392383486,0.0506212,145.57,145.56,10.8045]
[1724392384778,1.3833,145.63,145.6,7.37]
[1724392385780,1.43266163,145.63,145.6,7.4206212]
[1724392386282,3.4331,145.62,145.6,7.4206212]
[1724392387787,3.4334,145.61,145.6,0.0506212]
[1724392387982,3.4334,145.61,145.56,7.37]
[1724392388290,3.4334,145.61,145.57,3.4343]
[1724392388477,3.4334,145.61,145.58,7.37]
[1724392388882,0.04682933,145.61,145.58,7.37]
[1724392392283,0.04682933,145.61,145.58,10.804]
[1724392392483,0.04682933,145.61,145.59,7.37]
[1724392397394,0.04682933,145.61,145.59,10.8038]
[1724392397691,0.04682933,145.61,145.59,7.37]
[1724392405196,0.04682933,145.61,145.59,10.8037]
[1724392405399,0.04682933,145.61,145.6,7.37]
[1724392405798,0.04682933,145.61,145.6,10.8036]
[1724392406394,0.04682933,145.61,145.6,14.23054424]
[1724392408803,11.28,145.69,145.63,3.4328]
[1724392408996,11.28,145.69,145.63,10.8028]
[1724392409196,3.4319,145.68,145.63,10.8028]
[1724392409701,0.05073126,145.67,145.64,0.04668429]
[1724392412000,3.48273126,145.67,145.64,0.04668429]
[1724392412302,7.37,145.66,145.64,0.04668429]
[1724392412506,10.8024,145.65,145.64,0.04668429]
[1724392414207,3.4324,145.65,145.64,0.04668429]
[1724392414409,10.8024,145.65,145.64,0.02251429]
[1724392415898,10.8024,145.65,145.54,1.2846]
[1724392415899,7.37,145.65,145.53,21.65318854]
[1724392416204,1.99945,145.53,145.5,3.9449]
[1724392416412,7.37,145.61,145.56,3.4345]
[1724392417011,0.04815331,145.6,145.56,3.4345]
[1724392418504,0.04815331,145.6,145.58,7.37]
[1724392420205,2.00398,145.58,145.54,7.37]
[1724392420410,0.04470988,145.57,145.54,5.36602]
[1724392420606,0.04470988,145.57,145.51,3.4357]